fUST/lending_fUST_20260126
["ID","MTS","AMOUNT","RATE_DAILY","PERIOD"]
[403571451,1769385040209,-300.0,0.00013673,2]
[403571452,1769385040218,-156.62,0.00013677,2]
[403571453,1769385040227,-500.0,0.00013698,2]
[403571454,1769385040236,-500.0,0.00013698,2]
[403571455,1769385040245,-500.0,0.00013698,2]
[403571456,1769385040254,-500.0,0.00013698,2]
[403571457,1769385040263,-500.0,0.00013698,2]
[403571458,1769385040273,-500.0,0.00013698,2]
[403571459,1769385040282,-373.44493752,0.00013698,2]
[403571460,1769385040291,-500.0,0.00013698,2]
[403571461,1769385040300,-197.26054,0.00013698,2]
[403571474,1769385045964,-302.73946,0.00013698,2]
[403571475,1769385045973,-500.0,0.00013698,2]
[403571476,1769385045983,-372.75583668,0.00013698,2]
[403571477,1769385045992,-500.0,0.00013698,2]
[403571478,1769385046001,-500.0,0.00013698,2]
[403571479,1769385046010,-500.94794208,0.00013698,2]
[403571480,1769385046021,-500.0,0.00013698,2]
[403571481,1769385046029,-500.0,0.00013698,2]
[403571482,1769385046038,-500.0,0.00013698,2]
[403571483,1769385046047,-476.24566755,0.00013698,2]
[403571484,1769385046056,-500.0,0.00013698,2]
[403571485,1769385046066,-500.0,0.00013698,2]
[403571486,1769385046075,-500.0,0.00013698,2]
[403571487,1769385046084,-500.0,0.00013698,2]
[403571488,1769385046093,-500.0,0.00013698,2]
[403571489,1769385046103,-500.0,0.00013698,2]
[403571490,1769385046113,-462.6918045,0.00013698,2]
[403571491,1769385046122,-604.12719136,0.00013698,2]
[403571492,1769385046132,-500.0,0.00013698,2]
[403571493,1769385046142,-500.0,0.00013698,2]
[403571494,1769385046151,-500.0,0.00013698,2]
[403571495,1769385046160,-147.55401881,0.00013698,2]
[403571496,1769385046172,-499.02598119,0.00013698,2]
[403571497,1769385046182,-633.74,0.00013698,2]
[403571498,1769385046191,-500.0,0.00013698,2]
[403571499,1769385046200,-500.0,0.00013698,2]
[403571500,1769385046210,-500.0,0.00013698,2]
[403571501,1769385046219,-500.0,0.00013698,2]
[403571502,1769385046228,-500.0,0.00013698,2]
[403571503,1769385046238,-500.0,0.00013698,2]
[403571504,1769385046247,-500.0,0.00013698,2]
[403571505,1769385046256,-500.0,0.00013698,2]
[403571506,1769385046266,-500.0,0.00013698,2]
[403571507,1769385046276,-500.0,0.00013698,2]
[403571508,1769385046285,-500.0,0.00013698,2]
[403571509,1769385046295,-500.0,0.00013698,2]
[403571510,1769385046304,-500.0,0.00013698,2]
[403571511,1769385046313,-500.0,0.00013698,2]
[403571512,1769385046322,-500.0,0.00013698,2]
[403571513,1769385046331,-500.0,0.00013698,2]
[403571514,1769385046340,-500.0,0.00013698,2]
[403571515,1769385046349,-500.0,0.00013698,2]
[403571516,1769385046358,-500.0,0.00013698,2]
[403571517,1769385046367,-500.0,0.00013698,2]
[403571518,1769385046376,-500.0,0.00013698,2]
[403571519,1769385046385,-500.0,0.00013698,2]
[403571520,1769385046394,-500.0,0.00013698,2]
[403571521,1769385046402,-500.0,0.00013698,2]
[403571522,1769385046412,-48.9319921,0.00013698,2]
[403571523,1769385046423,-277.6007541,0.00013698,2]
[403571563,1769386231982,-278.7555093,0.00012679,2]
[403571564,1769386231991,-295.56272395,0.00012679,2]
[403571565,1769386232001,-3207.07123624,0.00013,2]
[403571566,1769386232014,-320.0,0.0001326,3]
[403571567,1769386232023,-1041.66666667,0.00013265,2]
[403571568,1769386232033,-1200.0,0.00013271,2]
[403571569,1769386232042,-300.0,0.00013272,2]
[403571571,1769386232052,-300.0,0.00013272,2]
[403571573,1769386232060,-300.0,0.00013272,2]
[403571575,1769386232069,-2003.02689483,0.00013273,2]
[403571578,1769386232080,-500.0,0.00013273,2]
[403571581,1769386232090,-500.0,0.00013273,2]
[403571584,1769386232100,-500.0,0.00013273,2]
[403571587,1769386232109,-500.0,0.00013273,2]
[403571590,1769386232119,-500.0,0.00013273,2]
[403571593,1769386232128,-3149.76055271,0.00013473,2]
[403571597,1769386232137,-300.0,0.00013537,2]
[403571599,1769386232147,-300.0,0.00013537,2]
[403571601,1769386232156,-300.0,0.00013537,2]
[403571602,1769386232165,-300.0,0.00013537,2]
[403571603,1769386232174,-300.0,0.00013537,2]
[403571604,1769386232183,-300.0,0.00013537,2]
[403571606,1769386232192,-300.0,0.00013537,2]
[403571608,1769386232201,-300.0,0.00013537,2]
[403571610,1769386232210,-300.0,0.00013537,2]
[403571612,1769386232219,-300.0,0.00013537,2]
[403571614,1769386232229,-300.0,0.00013537,2]
[403571616,1769386232238,-300.0,0.00013537,2]
[403571618,1769386232247,-300.0,0.00013537,2]
[403571620,1769386232257,-300.0,0.00013537,2]
[403571622,1769386232266,-300.0,0.00013537,2]
[403571624,1769386232276,-83726.77078067,0.00013547,2]
[403571626,1769386232285,-279.0,0.00013573,2]
[403571628,1769386232294,-1368.0,0.00013647,2]
[403571631,1769386232303,-629.0,0.00013647,2]
[403571632,1769386232312,-2149.0,0.00013647,2]
[403571634,1769386232321,-715.0,0.00013647,2]
[403571635,1769386232331,-179.539,0.00013647,2]
[403571636,1769386232341,-418.0,0.00013647,2]
[403571637,1769386232350,-300.0,0.00013673,2]
[403571638,1769386232359,-223.0,0.0001368,2]
[403571639,1769386232369,-223.0,0.00013693,2]
[403571640,1769386232378,-156.62,0.00013693,2]
[403571641,1769386232387,-289.4363018,0.00013698,2]
[403571642,1769386232397,-500.0,0.00013698,2]
[403571643,1769386232406,-500.0,0.00013698,2]
[403571644,1769386232415,-448.0000001,0.00013698,2]
[403571645,1769386232424,-317.01183615,0.00013698,2]
[403571646,1769386232434,-500.0,0.00013698,2]
[403571647,1769386232444,-500.0,0.00013698,2]
[403571648,1769386232453,-151.92,0.00013698,2]
[403571649,1769386232462,-500.0,0.00013698,2]
[403571650,1769386232472,-500.0,0.00013698,2]
[403571651,1769386232481,-500.0,0.00013698,2]
[403571652,1769386232490,-500.0,0.00013698,2]
[403571653,1769386232499,-500.0,0.00013698,2]
[403571654,1769386232509,-500.0,0.00013698,2]
[403571655,1769386232519,-500.0,0.00013698,2]
[403571656,1769386232529,-231.0290918,0.00013698,2]
[403571657,1769386232538,-500.0,0.00013698,2]
[403571658,1769386232548,-317.42242039,0.00013698,2]
[403571659,1769386232557,-500.0,0.00013698,2]
[403571660,1769386232567,-500.0,0.00013698,2]
[403571661,1769386232577,-500.0,0.00013698,2]
[403571662,1769386232586,-500.0,0.00013698,2]
[403571663,1769386232595,-500.0,0.00013698,2]
[403571664,1769386232604,-500.0,0.00013698,2]
[403571665,1769386232614,-500.0,0.00013698,2]
[403571666,1769386232624,-264.17653012,0.00013698,2]
[403571667,1769386232634,-500.0,0.00013698,2]
[403571668,1769386232643,-310.99436941,0.00013698,2]
[403571669,1769386232652,-560.1692792,0.00013698,2]
[403571670,1769386232662,-500.0,0.00013698,2]
[403571671,1769386232671,-500.0,0.00013698,2]
[403571672,1769386232680,-500.0,0.00013698,2]
[403571673,1769386232689,-500.0,0.00013698,2]
[403571674,1769386232698,-500.0,0.00013698,2]
[403571675,1769386232707,-500.0,0.00013698,2]
[403571676,1769386232716,-500.0,0.00013698,2]
[403571677,1769386232726,-500.0,0.00013698,2]
[403571678,1769386232736,-500.0,0.00013698,2]
[403571679,1769386232745,-252.61218489,0.00013698,2]
[403571680,1769386232754,-500.0,0.00013698,2]
[403571681,1769386232763,-500.0,0.00013698,2]
[403571682,1769386232772,-640.48,0.00013698,2]
[403571683,1769386232782,-644.28237096,0.00013698,2]
[403571684,1769386232792,-500.0,0.00013698,2]
[403571685,1769386232800,-500.0,0.00013698,2]
[403571686,1769386232810,-459.67234884,0.00013698,2]
[403571687,1769386232819,-676.96,0.00013698,2]
[403571688,1769386232828,-500.0,0.00013698,2]
[403571689,1769386232838,-500.0,0.00013698,2]
[403571690,1769386232847,-500.0,0.00013698,2]
[403571691,1769386232856,-500.0,0.00013698,2]
[403571692,1769386232865,-553.26,0.00013698,2]
[403571693,1769386232874,-587.76379579,0.00013698,2]
[403571694,1769386232883,-151.18366986,0.00013698,2]
[403571695,1769386232892,-516.95,0.00013698,2]
[403571696,1769386232901,-1087.05,0.00013698,2]
[403571697,1769386232910,-500.0,0.00013698,2]
[403571698,1769386232919,-500.0,0.00013698,2]
[403571699,1769386232928,-500.0,0.00013698,2]
[403571700,1769386232938,-624.56870707,0.00013698,2]
[403571701,1769386232947,-500.0,0.00013698,2]
[403571702,1769386232956,-3781.17,0.00013698,2]
[403571703,1769386232966,-677.74,0.00013698,2]
[403571704,1769386232975,-500.0,0.00013698,2]
[403571705,1769386232984,-500.0,0.00013698,2]
[403571706,1769386232993,-500.0,0.00013698,2]
[403571707,1769386233002,-1117.2,0.00013698,2]
[403571708,1769386233016,-526.02419297,0.00013698,2]
[403571709,1769386233025,-500.0,0.00013698,2]
[403571710,1769386233035,-500.0,0.00013698,2]
[403571711,1769386233044,-500.0,0.00013698,2]
[403571712,1769386233055,-500.0,0.00013698,2]
[403571713,1769386233065,-500.0,0.00013698,2]
[403571714,1769386233074,-500.0,0.00013698,2]
[403571715,1769386233084,-500.0,0.00013698,2]
[403571716,1769386233095,-500.0,0.00013698,2]
[403571717,1769386233105,-500.0,0.00013698,2]
[403571718,1769386233114,-500.0,0.00013698,2]
[403571719,1769386233124,-289.0916402,0.00013698,2]
[403571720,1769386233133,-500.0,0.00013698,2]
[403571721,1769386233142,-500.0,0.00013698,2]
[403571722,1769386233151,-500.0,0.00013698,2]
[403571723,1769386233161,-3014.18,0.00013698,2]
[403571724,1769386233171,-185.85988318,0.00013699,2]
[403571765,1769386238659,-2000.0,0.00013546,2]
[403571766,1769386238669,-202.60541126,0.00013546,2]
[403571767,1769386238679,-783.57766982,0.00013699,2]
[403571768,1769386238688,-1000.0,0.00013699,2]
[403571769,1769386238697,-151.0,0.00013699,2]
[403571770,1769386238707,-151.0,0.00013699,2]
[403571771,1769386238717,-151.0,0.00013699,2]
[403571772,1769386238727,-151.0,0.00013699,2]
[403571773,1769386238735,-151.0,0.00013699,2]
[403571774,1769386238744,-151.0,0.00013699,2]
[403571775,1769386238754,-151.0,0.00013699,2]
[403571776,1769386238763,-151.0,0.00013699,2]
[403571777,1769386238773,-151.0,0.00013699,2]
[403571778,1769386238782,-151.0,0.00013699,2]
[403571779,1769386238792,-151.0,0.00013699,2]
[403571780,1769386238802,-151.0,0.00013699,2]
[403571781,1769386238813,-151.0,0.00013699,2]
[403571782,1769386238823,-151.0,0.00013699,2]
[403571783,1769386238833,-151.0,0.00013699,2]
[403571784,1769386238843,-151.0,0.00013699,2]
[403571785,1769386238853,-151.0,0.00013699,2]
[403571786,1769386238863,-151.0,0.00013699,2]
[403571787,1769386238873,-239.791234,0.00013699,2]
[403571788,1769386238883,-797.0,0.00013699,2]
[403571789,1769386238893,-163.17755779,0.00013699,2]
[403571790,1769386238903,-500.0,0.00013699,2]
[403571791,1769386238912,-167.69074235,0.00013699,2]
[403571792,1769386238922,-500.0,0.00013699,2]
[403571793,1769386238932,-500.0,0.00013699,2]
[403571794,1769386238943,-201.97741595,0.00013699,2]
[403571801,1769386240352,-554.424,0.00013546,2]
[403571802,1769386240362,-140.49754696,0.00013699,2]
[403571803,1769386240371,-500.0,0.00013699,2]
[403571804,1769386240380,-500.0,0.00013699,2]
[403571805,1769386240390,-500.0,0.00013699,2]
[403571806,1769386240399,-500.0,0.00013699,2]
[403571807,1769386240407,-500.0,0.00013699,2]
[403571808,1769386240416,-174.93397323,0.00013699,2]
[403571809,1769386240426,-500.0,0.00013699,2]
[403571810,1769386240434,-35.28766131,0.00013699,2]
[403572423,1769386246576,-500.0,0.00013698,2]
[403572426,1769386246585,-464.71233869,0.00013699,2]
[403572428,1769386246595,-500.0,0.00013699,2]
[403572430,1769386246604,-500.0,0.00013699,2]
[403572431,1769386246613,-500.0,0.00013699,2]
[403572433,1769386246622,-500.0,0.00013699,2]
[403572435,1769386246632,-526.68040445,0.00013699,2]
[403572437,1769386246642,-500.0,0.00013699,2]
[403572439,1769386246651,-500.0,0.00013699,2]
[403572441,1769386246660,-500.0,0.00013699,2]
[403572443,1769386246669,-500.0,0.00013699,2]
[403572446,1769386246679,-500.0,0.00013699,2]
[403572447,1769386246689,-540.55384637,0.00013699,2]
[403572449,1769386246698,-500.0,0.00013699,2]
[403572451,1769386246708,-500.0,0.00013699,2]
[403572453,1769386246717,-531.66955229,0.00013699,2]
[403572456,1769386246726,-500.0,0.00013699,2]
[403572458,1769386246735,-500.0,0.00013699,2]
[403572459,1769386246744,-500.0,0.00013699,2]
[403572461,1769386246753,-500.0,0.00013699,2]
[403572463,1769386246762,-500.0,0.00013699,2]
[403572465,1769386246772,-500.0,0.00013699,2]
[403572467,1769386246781,-500.0,0.00013699,2]
[403572470,1769386246792,-500.0,0.00013699,2]
[403572471,1769386246801,-71.27962246,0.00013699,2]
[403572475,1769386246814,-428.72037754,0.00013699,2]
[403572477,1769386246824,-500.0,0.00013699,2]
[403572479,1769386246833,-42.84474058,0.00013699,2]
[403572481,1769386246844,-457.15525942,0.00013699,2]
[403572483,1769386246854,-500.0,0.00013699,2]
[403572485,1769386246863,-500.0,0.00013699,2]
[403572487,1769386246872,-500.0,0.00013699,2]
[403572489,1769386246881,-475.55132502,0.00013699,2]
[403577819,1769387432086,-500.0,9.079e-05,2]
[403577824,1769387432116,-160.55388347,9.079e-05,2]
[403577826,1769387432125,-306.78723283,9.241e-05,2]
[403577828,1769387432134,-155.68,9.706e-05,2]
[403577830,1769387432143,-2000.0,9.999e-05,2]
[403577832,1769387432153,-181.62,0.00010079,2]
[403577834,1769387432162,-207.57,0.00010453,2]
[403577835,1769387432171,-233.52,0.0001087,2]
[403577837,1769387432180,-362.00893474,0.00011241,2]
[403577838,1769387432189,-259.46,0.00011245,2]
[403577839,1769387432198,-999.298191,0.00011667,2]
[403577840,1769387432207,-170.3936916,0.000117,2]
[403577841,1769387432216,-380.03378917,0.00011745,2]
[403577842,1769387432229,-359.96,0.00012329,2]
[403577844,1769387432239,-285.0,0.00012685,3]
[403577846,1769387432249,-300.0,0.00012896,2]
[403577847,1769387432258,-300.0,0.00012896,2]
[403577848,1769387432266,-1200.0,0.00012896,2]
[403577849,1769387432275,-9365.08116049,0.00012897,2]
[403577860,1769387438296,-203.49952849,0.00012896,2]
[403577861,1769387438306,-500.0,0.00012896,2]
[403577862,1769387438315,-500.0,0.00012896,2]
[403577863,1769387438330,-500.0,0.00012896,2]
[403577864,1769387438339,-500.0,0.00012896,2]
[403577865,1769387438350,-500.0,0.00012896,2]
[403577866,1769387438360,-500.0,0.00012896,2]
[403577867,1769387438371,-500.0,0.00012896,2]
[403577868,1769387438380,-500.0,0.00012896,2]
[403577869,1769387438390,-500.0,0.00012896,2]
[403577870,1769387438400,-500.0,0.00012896,2]
[403577871,1769387438410,-500.0,0.00012896,2]
[403577872,1769387438420,-500.0,0.00012896,2]
[403577873,1769387438430,-173.68857546,0.00012896,2]
[403577874,1769387438439,-500.0,0.00012896,2]
[403577875,1769387438448,-500.0,0.00012896,2]
[403577876,1769387438458,-2524.9647402,0.00012897,2]
[403577877,1769387438469,-47491.45794586,0.00012897,2]
[403577878,1769387438491,-9572.64957004,0.00012897,2]
[403577879,1769387438502,-369.58089182,0.00012897,2]
[403577892,1769387440481,-833.04069249,0.00012897,2]
[403577893,1769387440492,-1095.21043255,0.00012897,2]
[403577894,1769387440504,-262.0624995,0.00012897,2]
[403577895,1769387440515,-899.58312,0.00012897,2]
[403577923,1769387445971,-1378.62418136,0.00012897,2]
[403577938,1769387446210,-419.18467264,0.00012897,2]
[403577943,1769387446420,-1463.83854795,0.00012897,2]
[403577944,1769387446432,-3260.40972283,0.00012897,2]
[403577945,1769387446442,-795.2008064,0.00012941,2]
[403577946,1769387446451,-378.4940417,0.00012941,2]
[403577947,1769387446461,-378.4940417,0.00012941,2]
[403577948,1769387446470,-378.4940417,0.00012941,2]
[403577949,1769387446479,-153.0,0.00012978,2]
[403577950,1769387446489,-1041.66666667,0.00013035,2]
[403577951,1769387446498,-378.1644513,0.00013041,2]
[403577952,1769387446508,-378.4940417,0.00013041,2]
[403577953,1769387446517,-378.4940417,0.00013041,2]
[403577954,1769387446526,-207.4160048,0.00013041,2]
[403577955,1769387446535,-378.4940417,0.00013041,2]
[403577956,1769387446544,-378.4940417,0.00013041,2]
[403577957,1769387446554,-378.4940417,0.00013041,2]
[403577958,1769387446564,-378.4940417,0.00013041,2]
[403577959,1769387446573,-378.4940417,0.00013041,2]
[403577960,1769387446582,-378.4940417,0.00013041,2]
[403577961,1769387446591,-378.4940417,0.00013041,2]
[403577962,1769387446600,-603.5926791,0.00013078,2]
[403577963,1769387446610,-153.0,0.00013078,2]
[403577964,1769387446619,-603.5926791,0.00013078,2]
[403577965,1769387446627,-153.0,0.00013078,2]
[403577966,1769387446636,-603.5926791,0.00013078,2]
[403577967,1769387446647,-153.0,0.00013078,2]
[403577968,1769387446656,-1207.1853582,0.00013078,2]
[403577969,1769387446665,-213.85700747,0.00013099,2]
[403577970,1769387446675,-185.2951164,0.000131,2]
[403577971,1769387446684,-153.0,0.000131,2]
[403577972,1769387446693,-378.4940417,0.000131,2]
[403577973,1769387446703,-378.4940417,0.000131,2]
[403577974,1769387446712,-153.0,0.00013178,2]
[403577975,1769387446721,-156.0649819,0.00013178,2]
[403577976,1769387446730,-185.2951164,0.00013178,2]
[403577977,1769387446739,-153.0,0.00013178,2]
[403577978,1769387446749,-153.0,0.00013178,2]
[403577979,1769387446758,-415.58493197,0.00013211,2]
[403577980,1769387446767,-417.23063665,0.00013241,2]
[403577981,1769387446776,-500.0,0.00013273,2]
[403577982,1769387446785,-500.0,0.00013273,2]
[403577983,1769387446794,-500.0,0.00013273,2]
[403577984,1769387446803,-500.0,0.00013273,2]
[403577985,1769387446812,-500.0,0.00013273,2]
[403577986,1769387446821,-500.0,0.00013273,2]
[403577987,1769387446830,-378.4116441,0.000133,2]
[403577988,1769387446840,-218.3603486,0.00013366,2]
[403577989,1769387446849,-194.5963318,0.00013366,2]
[403577990,1769387446859,-389.1614994,0.00013366,2]
[403577991,1769387446868,-194.5963318,0.00013366,2]
[403577992,1769387446877,-316.2077657,0.00013366,2]
[403577993,1769387446887,-378.4940417,0.00013441,2]
[403577994,1769387446896,-194.5963318,0.00013578,2]
[403577995,1769387446906,-153.0,0.00013578,2]
[403577996,1769387446915,-658.4408184,0.00013578,2]
[403577997,1769387446925,-1000.0,0.000136,2]
[403577998,1769387446934,-2149.0,0.00013647,2]
[403577999,1769387446943,-629.0,0.00013647,2]
[403578000,1769387446953,-418.0,0.00013647,2]
[403578001,1769387446963,-715.0,0.00013647,2]
[403578002,1769387446972,-179.539,0.00013647,2]
[403578003,1769387446981,-300.0,0.00013673,2]
[403578004,1769387446990,-156.62176283,0.00013673,2]
[403578005,1769387446999,-5166.2920792,0.00013695,2]
[403578006,1769387447008,-521.10965478,0.00013695,2]
[403578007,1769387447020,-203.28376082,0.00013695,2]
[403578008,1769387447029,-251.64323918,0.00013698,2]
[403578011,1769388554884,10000.01,6.63e-05,2]
[403578012,1769388554908,3552.99,6.63e-05,2]
[403578063,1769388632195,-777.97675335,0.00013031,2]
[403578064,1769388632204,-294.67326274,0.00013031,2]
[403578065,1769388632214,-1041.66666667,0.00013031,2]
[403578066,1769388632223,-160.0,0.000131,2]
[403578067,1769388632232,-160.0,0.000131,2]
[403578068,1769388632241,-500.0,0.0001315,2]
[403578069,1769388632250,-213.14839871,0.0001315,2]
[403578070,1769388632259,-180.81716895,0.0001315,2]
[403578071,1769388632268,-500.0,0.00013151,2]
[403578072,1769388632277,-160.0,0.000132,2]
[403578073,1769388632286,-300.0,0.00013204,2]
[403578074,1769388632295,-301.0,0.00013205,3]
[403578075,1769388632304,-6641.76077625,0.00013205,2]
[403578076,1769388632315,-386.37513093,0.00013205,2]
[403578077,1769388632331,-2971.87409282,0.00013205,2]
[403578078,1769388632340,-2756.04048363,0.00013238,2]
[403578079,1769388632349,-2773.56790519,0.00013265,2]
[403578080,1769388632358,-440.24648614,0.00013273,2]
[403578081,1769388632367,-500.0,0.00013273,2]
[403578082,1769388632376,-500.0,0.00013273,2]
[403578083,1769388632385,-500.0,0.00013273,2]
[403578084,1769388632394,-500.0,0.00013273,2]
[403578085,1769388632403,-500.0,0.00013273,2]
[403578086,1769388632414,-500.0,0.00013273,2]
[403578087,1769388632423,-500.0,0.00013273,2]
[403578088,1769388632432,-500.0,0.00013273,2]
[403578089,1769388632441,-500.0,0.00013273,2]
[403578090,1769388632450,-500.0,0.00013273,2]
[403578091,1769388632458,-500.0,0.00013273,2]
[403578092,1769388632467,-500.0,0.00013273,2]
[403578093,1769388632475,-158.06423794,0.00013273,2]
[403578094,1769388632484,-500.0,0.00013273,2]
[403578095,1769388632493,-500.0,0.00013273,2]
[403578096,1769388632502,-500.0,0.00013273,2]
[403578097,1769388632511,-500.0,0.00013273,2]
[403578098,1769388632520,-371.72602306,0.00013273,2]
[403578099,1769388632549,-152.89858113,0.00013273,2]
[403578100,1769388632558,-500.0,0.00013273,2]
[403578101,1769388632567,-461.33723021,0.00013273,2]
[403578108,1769388638305,-38.66276979,0.00013273,2]
[403578109,1769388638315,-500.0,0.00013273,2]
[403578110,1769388638324,-214.90304718,0.00013273,2]
[403578111,1769388638336,-500.66101042,0.00013273,2]
[403578112,1769388638346,-186.59987911,0.00013273,2]
[403578113,1769388638355,-500.0,0.00013273,2]
[403578114,1769388638365,-211.14463926,0.00013273,2]
[403578115,1769388638374,-147.90653387,0.00013273,2]
[403578116,1769388638386,-352.09346613,0.00013273,2]
[403578117,1769388638395,-500.0,0.00013273,2]
[403578118,1769388638404,-500.0,0.00013273,2]
[403578119,1769388638413,-327.29912092,0.00013273,2]
[403578120,1769388638423,-500.0,0.00013273,2]
[403578121,1769388638432,-500.0,0.00013273,2]
[403578122,1769388638441,-500.0,0.00013273,2]
[403578123,1769388638450,-500.0,0.00013287,2]
[403578124,1769388638459,-500.0,0.00013288,2]
[403578125,1769388638468,-160.0,0.000133,2]
[403578126,1769388638477,-729.0,0.00013338,2]
[403578127,1769388638487,-200.14072209,0.00013361,2]
[403578128,1769388638496,-500.0,0.00013361,2]
[403578129,1769388638505,-160.0,0.000134,2]
[403578130,1769388638514,-160.0,0.000134,2]
[403578131,1769388638523,-151.0,0.00013417,2]
[403578132,1769388638532,-574.12855637,0.00013417,2]
[403578133,1769388638541,-693.3919763,0.00013417,2]
[403578134,1769388638550,-151.0,0.00013417,2]
[403578135,1769388638559,-2000.0,0.00013417,2]
[403578137,1769388638568,-151.0,0.00013417,2]
[403578138,1769388638577,-2000.0,0.00013417,2]
[403578140,1769388638587,-151.0,0.00013417,2]
[403578141,1769388638597,-2000.0,0.00013417,2]
[403578142,1769388638606,-151.0,0.00013417,2]
[403578144,1769388638616,-250.0,0.00013417,2]
[403578145,1769388638626,-1187.20512535,0.00013417,2]
[403578147,1769388638635,-151.0,0.00013417,2]
[403578148,1769388638645,-151.0,0.00013417,2]
[403578149,1769388638655,-250.0,0.00013417,2]
[403578150,1769388638666,-151.0,0.00013417,2]
[403578151,1769388638677,-151.0,0.00013417,2]
[403578152,1769388638686,-250.0,0.00013417,2]
[403578153,1769388638698,-151.0,0.00013417,2]
[403578154,1769388638707,-151.0,0.00013417,2]
[403578155,1769388638717,-250.0,0.00013417,2]
[403578156,1769388638726,-151.0,0.00013417,2]
[403578157,1769388638736,-151.0,0.00013417,2]
[403578158,1769388638745,-250.0,0.00013417,2]
[403578159,1769388638754,-151.0,0.00013417,2]
[403578160,1769388638764,-151.0,0.00013417,2]
[403578161,1769388638773,-250.0,0.00013417,2]
[403578162,1769388638783,-151.0,0.00013417,2]
[403578163,1769388638792,-151.0,0.00013417,2]
[403578164,1769388638801,-250.0,0.00013417,2]
[403578165,1769388638811,-151.0,0.00013417,2]
[403578166,1769388638819,-151.0,0.00013417,2]
[403578167,1769388638828,-151.0,0.00013417,2]
[403578168,1769388638838,-151.0,0.00013417,2]
[403578169,1769388638847,-151.0,0.00013417,2]
[403578170,1769388638856,-151.0,0.00013417,2]
[403578171,1769388638865,-151.0,0.00013417,2]
[403578172,1769388638875,-151.0,0.00013417,2]
[403578173,1769388638884,-250.0,0.00013417,2]
[403578174,1769388638893,-151.0,0.00013417,2]
[403578175,1769388638903,-250.0,0.00013417,2]
[403578176,1769388638911,-250.0,0.00013417,2]
[403578177,1769388638921,-151.0,0.00013417,2]
[403578178,1769388638930,-151.0,0.00013417,2]
[403578179,1769388638940,-250.0,0.00013417,2]
[403578180,1769388638949,-209.40437684,0.00013417,2]
[403578181,1769388638958,-217.15233878,0.00013417,2]
[403578182,1769388638967,-225.18697532,0.00013417,2]
[403578183,1769388638976,-233.51889341,0.00013417,2]
[403578184,1769388638985,-242.15909246,0.00013417,2]
[403578185,1769388638994,-251.11897888,0.00013417,2]
[403578186,1769388639004,-260.4103811,0.00013417,2]
[403578187,1769388639013,-270.0455652,0.00013417,2]
[403578188,1769388639022,-280.03725112,0.00013417,2]
[403578189,1769388639031,-290.39862941,0.00013417,2]
[403578190,1769388639040,-301.1433787,0.00013417,2]
[403578191,1769388639049,-500.0,0.00013417,2]
[403578192,1769388639059,-500.0,0.00013417,2]
[403578193,1769388639068,-500.0,0.00013417,2]
[403578194,1769388639077,-500.0,0.00013424,2]
[403578195,1769388639086,-500.0,0.00013424,2]
[403578196,1769388639095,-500.0,0.00013424,2]
[403578197,1769388639105,-500.0,0.00013424,2]
[403578198,1769388639114,-500.0,0.00013424,2]